fUST/lending_fUST_20250705
["ID","MTS","AMOUNT","RATE_DAILY","PERIOD"]
[369656522,1751681442515,-461.32897617,0.00019178,2]
[369656523,1751681442524,-460.0,0.00019178,2]
[369656524,1751681442534,-460.0,0.00019178,2]
[369656525,1751681442544,-733.61,0.00019178,2]
[369656526,1751681442553,-460.0,0.00019178,2]
[369656527,1751681442562,-461.19450195,0.00019178,2]
[369656528,1751681442571,-460.0,0.00019178,2]
[369656529,1751681442580,-460.0,0.00019178,2]
[369656530,1751681442589,-460.0,0.00019178,2]
[369656531,1751681442598,-460.0,0.00019178,2]
[369656532,1751681442607,-248.28955574,0.00019178,2]
[369656533,1751681442618,-460.0,0.00019178,2]
[369656534,1751681442627,-463.78844314,0.00019178,2]
[369656535,1751681442637,-460.0,0.00019178,2]
[369656536,1751681442646,-461.83520425,0.00019178,2]
[369656537,1751681442655,-460.0,0.00019178,2]
[369656538,1751681442665,-460.0,0.00019178,2]
[369656539,1751681442674,-460.0,0.00019178,2]
[369656540,1751681442683,-460.0,0.00019178,2]
[369656541,1751681442693,-464.63591698,0.00019178,2]
[369656542,1751681442702,-460.0,0.00019178,2]
[369656543,1751681442712,-460.0,0.00019178,2]
[369656544,1751681442721,-460.72385342,0.00019178,2]
[369656545,1751681442730,-460.0,0.00019178,2]
[369656546,1751681442740,-460.0,0.00019178,2]
[369656547,1751681442750,-448.77487281,0.00019178,2]
[369656548,1751681442758,-460.0,0.00019178,2]
[369656549,1751681442767,-461.79061659,0.00019178,2]
[369656550,1751681442777,-460.0,0.00019178,2]
[369656551,1751681442786,-205.71144804,0.00019178,2]
[369656552,1751681442796,-460.0,0.00019178,2]
[369656553,1751681442805,-460.0,0.00019178,2]
[369656554,1751681442814,-460.0,0.00019178,2]
[369656555,1751681442822,-764.26,0.00019178,2]
[369656556,1751681442831,-460.89920643,0.00019178,2]
[369656557,1751681442841,-460.0,0.00019178,2]
[369656558,1751681442850,-527.33116528,0.00019178,2]
[369656559,1751681442859,-418.70980751,0.00019178,2]
[369656560,1751681442869,-460.83943469,0.00019178,2]
[369656561,1751681442878,-410.71933552,0.00019178,2]
[369656562,1751681442888,-460.81011069,0.00019178,2]
[369656563,1751681442897,-460.0,0.00019178,2]
[369656564,1751681442906,-460.0,0.00019178,2]
[369656565,1751681442916,-460.0,0.00019178,2]
[369656566,1751681442926,-579.37,0.00019178,2]
[369656567,1751681442935,-579.37,0.00019178,2]
[369656568,1751681442944,-579.37,0.00019178,2]
[369656569,1751681442953,-579.37,0.00019178,2]
[369656570,1751681442962,-579.37,0.00019178,2]
[369656571,1751681442972,-579.37,0.00019178,2]
[369656572,1751681442981,-579.37,0.00019178,2]
[369656573,1751681442991,-579.37,0.00019178,2]
[369656574,1751681443000,-579.37,0.00019178,2]
[369656575,1751681443010,-460.86840604,0.00019178,2]
[369656576,1751681443019,-460.0,0.00019178,2]
[369656577,1751681443028,-579.37,0.00019178,2]
[369656578,1751681443038,-460.0,0.00019178,2]
[369656579,1751681443047,-579.37,0.00019178,2]
[369656580,1751681443057,-517.25751484,0.00019178,2]
[369656581,1751681443066,-579.37,0.00019178,2]
[369656582,1751681443075,-460.0,0.00019178,2]
[369656583,1751681443085,-460.60181948,0.00019178,2]
[369656584,1751681443094,-460.0,0.00019178,2]
[369656585,1751681443104,-460.0,0.00019178,2]
[369656586,1751681443113,-460.0,0.00019178,2]
[369656587,1751681443122,-460.83901209,0.00019178,2]
[369656588,1751681443131,-763.8,0.00019178,2]
[369656589,1751681443140,-460.0,0.00019178,2]
[369656590,1751681443149,-460.70465126,0.00019178,2]
[369656591,1751681443159,-442.60291779,0.00019178,2]
[369656592,1751681443168,-460.0,0.00019178,2]
[369656593,1751681443178,-460.0,0.00019178,2]
[369656594,1751681443187,-460.0,0.00019178,2]
[369656595,1751681443196,-460.42378283,0.00019178,2]
[369656596,1751681443205,-460.0,0.00019178,2]
[369656597,1751681443214,-460.0,0.00019178,2]
[369656598,1751681443223,-479.35638836,0.00019178,2]
[369656599,1751681443234,-460.0,0.00019178,2]
[369656600,1751681443243,-422.44839069,0.00019178,2]
[369656601,1751681443253,-460.0,0.00019178,2]
[369656602,1751681443262,-461.80478698,0.00019178,2]
[369656603,1751681443271,-460.0,0.00019178,2]
[369656604,1751681443280,-463.36832277,0.00019178,2]
[369656605,1751681443289,-460.0,0.00019178,2]
[369656606,1751681443298,-460.0,0.00019178,2]
[369656607,1751681443309,-460.0,0.00019178,2]
[369656608,1751681443318,-460.0,0.00019178,2]
[369656609,1751681443327,-461.08217932,0.00019178,2]
[369656610,1751681443336,-460.71787081,0.00019178,2]
[369656611,1751681443346,-348.91272386,0.00019178,2]
[369656612,1751681443356,-460.0,0.00019178,2]
[369656613,1751681443365,-460.0,0.00019178,2]
[369656614,1751681443374,-543.08,0.00019178,2]
[369656615,1751681443384,-462.24176323,0.00019178,2]
[369656616,1751681443393,-460.0,0.00019178,2]
[369656617,1751681443403,-460.94209286,0.00019178,2]
[369656618,1751681443411,-460.0,0.00019178,2]
[369656619,1751681443420,-460.0,0.00019178,2]
[369656620,1751681443430,-460.0,0.00019178,2]
[369656621,1751681443439,-509.39266524,0.00019178,2]
[369656622,1751681443448,-460.0,0.00019178,2]
[369656623,1751681443457,-177.60097107,0.00019178,2]
[369656624,1751681443466,-461.94803968,0.00019178,2]
[369656625,1751681443475,-460.0,0.00019178,2]
[369656626,1751681443485,-460.0,0.00019178,2]
[369656627,1751681443495,-461.16281927,0.00019178,2]
[369656628,1751681443504,-460.0,0.00019178,2]
[369656629,1751681443513,-460.0,0.00019178,2]
[369656630,1751681443522,-462.82276082,0.00019178,2]
[369656631,1751681443531,-461.87289088,0.00019178,2]
[369656632,1751681443540,-460.0,0.00019178,2]
[369656633,1751681443549,-460.0,0.00019178,2]
[369656634,1751681443559,-460.0,0.00019178,2]
[369656635,1751681443568,-460.0,0.00019178,2]
[369656636,1751681443577,-460.0,0.00019178,2]
[369656637,1751681443586,-460.0,0.00019178,2]
[369656638,1751681443595,-463.43053897,0.00019178,2]
[369656639,1751681443604,-291.45286555,0.00019178,2]
[369656640,1751681443613,-460.0,0.00019178,2]
[369656643,1751681443622,-522.99310749,0.00019178,2]
[369656645,1751681443631,-460.0,0.00019178,2]
[369656647,1751681443640,-460.0,0.00019178,2]
[369656648,1751681443649,-460.0,0.00019178,2]
[369656649,1751681443658,-460.0,0.00019178,2]
[369656650,1751681443668,-460.0,0.00019178,2]
[369656651,1751681443677,-460.0,0.00019178,2]
[369656652,1751681443686,-460.58469208,0.00019178,2]
[369656653,1751681443695,-460.0,0.00019178,2]
[369656654,1751681443704,-460.0,0.00019178,2]
[369656655,1751681443714,-460.0,0.00019178,2]
[369656656,1751681443723,-460.0,0.00019178,2]
[369656657,1751681443732,-460.0,0.00019178,2]
[369656658,1751681443741,-460.0,0.00019178,2]
[369656659,1751681443750,-493.8,0.00019178,2]
[369656660,1751681443759,-461.47280054,0.00019178,2]
[369656661,1751681443767,-603.64255972,0.00019178,2]
[369656662,1751681443777,-460.0,0.00019178,2]
[369656663,1751681443786,-460.0,0.00019178,2]
[369656664,1751681443795,-460.0,0.00019178,2]
[369656665,1751681443804,-460.0,0.00019178,2]
[369656666,1751681443813,-512.54073231,0.00019178,2]
[369656667,1751681443822,-460.0,0.00019178,2]
[369656668,1751681443831,-461.83863673,0.00019178,2]
[369656669,1751681443839,-460.0,0.00019178,2]
[369656670,1751681443849,-464.70851249,0.00019178,2]
[369656671,1751681443858,-533.18719219,0.00019178,2]
[369656672,1751681443867,-460.47276474,0.00019178,2]
[369656673,1751681443877,-460.0,0.00019178,2]
[369656674,1751681443886,-460.0,0.00019178,2]
[369656675,1751681443896,-460.0,0.00019178,2]
[369656676,1751681443905,-460.0,0.00019178,2]
[369656677,1751681443914,-460.0,0.00019178,2]
[369656678,1751681443923,-460.0,0.00019178,2]
[369656679,1751681443932,-460.89779203,0.00019178,2]
[369656680,1751681443941,-460.0,0.00019178,2]
[369656681,1751681443950,-460.0,0.00019178,2]
[369656682,1751681443959,-462.6142454,0.00019178,2]
[369656683,1751681443968,-460.0,0.00019178,2]
[369656684,1751681443977,-460.0,0.00019178,2]
[369656685,1751681443986,-460.0,0.00019178,2]
[369656686,1751681443995,-460.0,0.00019178,2]
[369656687,1751681444005,-460.0,0.00019178,2]
[369656688,1751681444014,-460.0,0.00019178,2]
[369656689,1751681444023,-462.63385111,0.00019178,2]
[369656690,1751681444032,-204.11123345,0.00019178,2]
[369656691,1751681444041,-460.9834125,0.00019178,2]
[369656692,1751681444050,-460.0,0.00019178,2]
[369656693,1751681444060,-460.0,0.00019178,2]
[369656694,1751681444069,-257.74149617,0.00019178,2]
[369656695,1751681444078,-461.07179154,0.00019178,2]
[369656696,1751681444088,-460.0,0.00019178,2]
[369656697,1751681444097,-460.0,0.00019178,2]
[369656698,1751681444106,-460.0,0.00019178,2]
[369656699,1751681444115,-460.0,0.00019178,2]
[369656700,1751681444124,-460.0,0.00019178,2]
[369656701,1751681444133,-460.0,0.00019178,2]
[369656702,1751681444142,-461.58994609,0.00019178,2]
[369656703,1751681444152,-511.74,0.00019178,2]
[369656704,1751681444161,-460.0,0.00019178,2]
[369656705,1751681444171,-151.0,0.00019178,2]
[369656706,1751681444180,-460.0,0.00019178,2]
[369656707,1751681444189,-460.0,0.00019178,2]
[369656708,1751681444199,-151.0,0.00019178,2]
[369656709,1751681444208,-460.0,0.00019178,2]
[369656710,1751681444218,-570.81882943,0.00019178,2]
[369656711,1751681444228,-151.0,0.00019178,2]
[369656712,1751681444246,-460.69739177,0.00019178,2]
[369656713,1751681444256,-460.0,0.00019178,2]
[369656714,1751681444266,-460.0,0.00019178,2]
[369656715,1751681444276,-151.0,0.00019178,2]
[369656716,1751681444285,-460.0,0.00019178,2]
[369656717,1751681444295,-460.0,0.00019178,2]
[369656718,1751681444305,-460.0,0.00019178,2]
[369656719,1751681444314,-460.0,0.00019178,2]
[369656720,1751681444326,-460.0,0.00019178,2]
[369656721,1751681444335,-460.0,0.00019178,2]
[369656722,1751681444345,-460.0,0.00019178,2]
[369656723,1751681444357,-460.0,0.00019178,2]
[369656724,1751681444367,-463.44037268,0.00019178,2]
[369656725,1751681444482,-460.85559225,0.00019178,2]
[369656726,1751681444492,-461.70531168,0.00019178,2]
[369656727,1751681444502,-460.0,0.00019178,2]
[369656728,1751681444511,-460.0,0.00019178,2]
[369656729,1751681444521,-222.671212,0.00019178,2]
[369656730,1751681444531,-666.0,0.00019178,2]
[369656731,1751681444540,-151.0,0.00019205,2]
[369656732,1751681444550,-262.74735328,0.00019205,2]
[369656733,1751681444561,-198.90321752,0.00019205,2]
[369656734,1751681444570,-199.64762291,0.00019205,2]
[369656735,1751681444580,-198.4486535,0.00019205,2]
[369656736,1751681444590,-198.66595804,0.00019205,2]
[369656737,1751681444599,-213.86964547,0.00019233,2]
[369656738,1751681444609,-498.17287279,0.00019309,2]
[369656739,1751681444618,-1133.20711795,0.00019383,2]
[369656740,1751681444628,-500.0,0.00019449,2]
[369656741,1751681444639,-500.0,0.00019449,2]
[369656742,1751681444648,-500.0,0.00019449,2]
[369656743,1751681444659,-500.0,0.00019451,2]
[369656744,1751681444668,-500.0,0.00019451,2]
[369656745,1751681444677,-517.82,0.00019451,2]
[369656746,1751681444687,-517.82,0.00019451,2]
[369656747,1751681444697,-500.0,0.00019451,2]
[369656748,1751681444707,-500.0,0.00019451,2]
[369656749,1751681444718,-579.37,0.00019451,2]
[369656750,1751681444727,-579.37,0.00019451,2]
[369656751,1751681444737,-461.01052886,0.00019452,2]
[369656752,1751681444747,-460.0,0.00019452,2]
[369656753,1751681444757,-288.4838612,0.00019452,2]
[369656754,1751681444766,-465.63764218,0.00019452,2]
[369656755,1751681444776,-461.05559581,0.00019452,2]
[369656756,1751681444785,-462.09831367,0.00019452,2]
[369656757,1751681444794,-463.15177712,0.00019452,2]
[369656758,1751681444803,-460.0,0.00019452,2]
[369656759,1751681444813,-463.06932966,0.00019452,2]
[369656760,1751681444823,-463.25822138,0.00019452,2]
[369656761,1751681444832,-460.0,0.00019452,2]
[369656762,1751681444841,-460.0,0.00019452,2]
[369656763,1751681444851,-461.18085518,0.00019452,2]
[369656764,1751681444860,-461.72250487,0.00019452,2]
[369656765,1751681444869,-460.0,0.00019452,2]
[369656766,1751681444878,-462.33126215,0.00019452,2]
[369656767,1751681444887,-489.85849825,0.00019452,2]
[369656768,1751681444897,-461.54371053,0.00019452,2]
[369656769,1751681444906,-462.48594329,0.00019452,2]
[369656770,1751681444916,-461.23025665,0.00019452,2]
[369656771,1751681444925,-461.69672078,0.00019452,2]
[369656772,1751681444935,-462.95577539,0.00019452,2]
[369656773,1751681444944,-462.82271528,0.00019452,2]
[369656774,1751681444953,-460.73718882,0.00019452,2]
[369656775,1751681444963,-435.87095347,0.00019452,2]
[369656776,1751681444974,-489.0,0.00019452,2]
[369656777,1751681444984,-494.58,0.00019452,2]
[369656778,1751681444994,-462.32843226,0.00019452,2]
[369656779,1751681445003,-461.47998555,0.00019452,2]
[369656780,1751681445013,-281.97,0.00019452,2]
[369656781,1751681445022,-357.58,0.00019452,2]
[369656782,1751681445031,-460.0,0.00019452,2]
[369656783,1751681445041,-462.99805424,0.00019452,2]
[369656784,1751681445050,-239.95,0.00019452,2]
[369656785,1751681445059,-460.0,0.00019452,2]
[369656786,1751681445069,-460.0,0.00019452,2]
[369656787,1751681445079,-291.04,0.00019452,2]
[369656788,1751681445088,-460.0,0.00019452,2]
[369656789,1751681445098,-460.0,0.00019452,2]
[369656790,1751681445107,-162.09,0.00019452,2]
[369656791,1751681445117,-460.0,0.00019452,2]
[369656792,1751681445126,-463.19352598,0.00019452,2]
[369656793,1751681445136,-460.0,0.00019452,2]
[369656794,1751681445145,-460.0,0.00019452,2]
[369656795,1751681445155,-595.96685989,0.00019452,2]
[369656796,1751681445165,-460.0,0.00019452,2]
[369656797,1751681445175,-460.0,0.00019452,2]
[369656798,1751681445184,-262.82228553,0.00019452,2]
[369656799,1751681445193,-460.0,0.00019452,2]
[369656800,1751681445202,-460.0,0.00019452,2]
[369656801,1751681445212,-227.34090798,0.00019452,2]
[369656802,1751681445222,-442.83,0.00019452,2]
[369656803,1751681445236,-460.0,0.00019452,2]
[369656804,1751681445246,-417.92,0.00019452,2]
[369656805,1751681445255,-462.83833115,0.00019452,2]
[369656806,1751681445265,-307.66,0.00019452,2]
[369656807,1751681445275,-460.0,0.00019452,2]
[369656808,1751681445284,-460.0,0.00019452,2]
[369656809,1751681445293,-485.50341607,0.00019452,2]
[369656810,1751681445303,-515.94656825,0.00019452,2]
[369656811,1751681445312,-225.49,0.00019452,2]
[369656812,1751681445322,-273.25,0.00019452,2]
[369656813,1751681445331,-460.0,0.00019452,2]
[369656814,1751681445340,-495.75308385,0.00019452,2]
[369656815,1751681445350,-463.48942379,0.00019452,2]
[369656816,1751681445359,-467.5589076,0.00019452,2]
[369656817,1751681445369,-460.0,0.00019452,2]
[369656818,1751681445379,-296.17,0.00019452,2]
[369656819,1751681445389,-450.82,0.00019452,2]
[369656820,1751681445399,-198.13,0.00019452,2]
[369656821,1751681445408,-294.62336776,0.00019452,2]
[369656822,1751681445418,-461.9791229,0.00019452,2]
[369656823,1751681445428,-179.95,0.00019452,2]
[369656824,1751681445437,-522.47860669,0.00019452,2]
[369656825,1751681445447,-460.0,0.00019452,2]
[369656826,1751681445458,-460.0,0.00019452,2]
[369656827,1751681445469,-180.38,0.00019452,2]
[369656828,1751681445478,-462.08746776,0.00019452,2]
[369656829,1751681445489,-460.0,0.00019452,2]
[369656830,1751681445498,-460.0,0.00019452,2]
[369656831,1751681445507,-460.0,0.00019452,2]
[369656832,1751681445517,-464.95925201,0.00019452,2]
[369656833,1751681445527,-584.38453164,0.00019452,2]
[369656834,1751681445536,-460.0,0.00019452,2]
[369656835,1751681445547,-158.77380399,0.00019452,2]
[369656836,1751681445556,-460.0,0.00019452,2]
[369656837,1751681445565,-644.04,0.00019452,2]
[369656838,1751681445575,-441.4582448,0.00019452,2]
[369656839,1751681445584,-460.0,0.00019452,2]
[369656840,1751681445593,-460.0,0.00019452,2]
[369656841,1751681445602,-460.0,0.00019452,2]
[369656842,1751681445611,-277.55,0.00019452,2]
[369656843,1751681445621,-581.31,0.00019452,2]
[369656844,1751681445630,-550.47181784,0.00019452,2]
[369656845,1751681445639,-503.08656803,0.00019452,2]
[369656846,1751681445648,-394.45,0.00019452,2]
[369656847,1751681445657,-505.08142013,0.00019452,2]
[369656848,1751681445666,-594.77336004,0.00019452,2]
[369656849,1751681445676,-733.61,0.00019452,2]
[369656850,1751681445687,-460.0,0.00019452,2]
[369656851,1751681445695,-460.0,0.00019452,2]
[369656852,1751681445704,-460.0,0.00019452,2]
[369656853,1751681445714,-460.0,0.00019452,2]
[369656854,1751681445723,-460.0,0.00019452,2]
[369656855,1751681445733,-460.0,0.00019452,2]
[369656856,1751681445742,-460.0,0.00019452,2]
[369656857,1751681445751,-460.0,0.00019452,2]
[369656858,1751681445760,-460.0,0.00019452,2]
[369656859,1751681445769,-463.13612911,0.00019452,2]
[369656860,1751681445778,-461.61381813,0.00019452,2]
[369656861,1751681445787,-462.81723263,0.00019452,2]
[369656862,1751681445796,-460.0,0.00019452,2]
[369656863,1751681445805,-461.53563877,0.00019452,2]
[369656864,1751681445815,-461.95348188,0.00019452,2]
[369656865,1751681445824,-338.48538303,0.00019452,2]
[369656866,1751681445833,-764.26,0.00019452,2]
[369656867,1751681445843,-461.31069183,0.00019452,2]
[369656868,1751681445852,-461.46607415,0.00019452,2]
[369656869,1751681445862,-463.22433803,0.00019452,2]
[369656870,1751681445871,-460.0,0.00019452,2]
[369656871,1751681445880,-460.0,0.00019452,2]
[369656872,1751681445890,-463.17133462,0.00019452,2]
[369656873,1751681445899,-462.96875389,0.00019452,2]
[369656874,1751681445908,-463.94215212,0.00019452,2]
[369656875,1751681445917,-460.0,0.00019452,2]
[369656876,1751681445927,-763.8,0.00019452,2]
[369656877,1751681445936,-460.0,0.00019452,2]
[369656878,1751681445945,-436.08280586,0.00019452,2]
[369656879,1751681445955,-460.0,0.00019452,2]
[369656880,1751681445964,-460.92184308,0.00019452,2]
[369656881,1751681445973,-460.0,0.00019452,2]
[369656882,1751681445982,-460.0,0.00019452,2]
[369656883,1751681445992,-463.33618972,0.00019452,2]
[369656884,1751681446001,-460.0,0.00019452,2]
[369656885,1751681446010,-460.0,0.00019452,2]
[369656886,1751681446019,-460.0,0.00019452,2]
[369656887,1751681446028,-498.6039513,0.00019452,2]
[369656888,1751681446038,-331.89371349,0.00019452,2]
[369656889,1751681446047,-460.0,0.00019452,2]
[369656890,1751681446055,-460.0,0.00019452,2]
[369656891,1751681446065,-606.03184306,0.00019452,2]
[369656892,1751681446074,-461.6775609,0.00019452,2]
[369656893,1751681446083,-421.83,0.00019452,2]
[369656894,1751681446092,-464.2654993,0.00019452,2]
[369656895,1751681446101,-461.09261953,0.00019452,2]
[369656896,1751681446111,-460.0,0.00019452,2]
[369656897,1751681446120,-460.0,0.00019452,2]
[369656898,1751681446129,-460.0,0.00019452,2]
[369656899,1751681446139,-460.0,0.00019452,2]
[369656900,1751681446149,-460.0,0.00019452,2]
[369656901,1751681446158,-462.04536469,0.00019452,2]
[369656902,1751681446167,-460.0,0.00019452,2]
[369656903,1751681446176,-460.94450049,0.00019452,2]
[369656904,1751681446185,-464.70495876,0.00019452,2]
[369656905,1751681446194,-460.0,0.00019452,2]
[369656906,1751681446203,-252.41505987,0.00019452,2]
[369656907,1751681446214,-463.26016993,0.00019452,2]
[369656908,1751681446227,-460.0,0.00019452,2]
[369656909,1751681446236,-463.74157276,0.00019452,2]
[369656910,1751681446245,-463.05577914,0.00019452,2]
[369656911,1751681446255,-461.98787167,0.00019452,2]
[369656912,1751681446264,-471.23642678,0.00019452,2]
[369656913,1751681446274,-445.42,0.00019452,2]
[369656914,1751681446283,-460.0,0.00019452,2]
[369656915,1751681446293,-460.0,0.00019452,2]
[369656916,1751681446302,-461.99037351,0.00019452,2]
[369656917,1751681446311,-460.0,0.00019452,2]
[369656918,1751681446320,-453.93,0.00019452,2]
[369656920,1751681446330,-460.0,0.00019452,2]
[369656922,1751681446339,-460.0,0.00019452,2]
[369656924,1751681446348,-462.46168213,0.00019452,2]
[369656926,1751681446359,-540.67968248,0.00019452,2]
[369656927,1751681446368,-501.05424482,0.00019452,2]
[369656928,1751681446378,-460.0,0.00019452,2]
[369656929,1751681446387,-525.65748008,0.00019452,2]
[369656930,1751681446396,-462.79705899,0.00019452,2]
[369656931,1751681446405,-460.0,0.00019452,2]
[369656932,1751681446414,-460.0,0.00019452,2]
[369656933,1751681446424,-539.76976947,0.00019452,2]
[369656934,1751681446433,-461.83999798,0.00019452,2]
[369656935,1751681446443,-241.45405256,0.00019452,2]
[369656936,1751681446452,-460.0,0.00019452,2]
[369656937,1751681446461,-463.07441709,0.00019452,2]
[369656938,1751681446470,-461.10114091,0.00019452,2]
[369656939,1751681446480,-464.47611728,0.00019452,2]
[369656940,1751681446489,-214.92,0.00019452,2]
[369656941,1751681446498,-462.29762852,0.00019452,2]
[369656942,1751681446507,-460.0,0.00019452,2]
[369656943,1751681446517,-450.584149,0.00019452,2]
[369656944,1751681446526,-461.12380303,0.00019452,2]
[369656945,1751681446536,-460.0,0.00019452,2]
[369656946,1751681446545,-460.0,0.00019452,2]
[369656947,1751681446658,-461.20688207,0.00019452,2]
[369656948,1751681446669,-234.90237601,0.00019517,2]
[369656949,1751681446680,-167.5092171,0.00019548,2]
[369656950,1751681446689,-311.44520459,0.00019548,2]
[369656951,1751681446699,-500.0,0.00019548,2]
[369656952,1751681446709,-503.17102689,0.00019548,2]
[369656953,1751681446719,-248.63443632,0.00019548,2]
[369656954,1751681446730,-500.0,0.00019548,2]
[369656955,1751681446741,-500.0,0.00019548,2]
[369656956,1751681446752,-461.77266038,0.00019548,2]
[369656957,1751681446763,-500.0,0.00019549,2]
[369656958,1751681446775,-517.82,0.00019549,2]
[369656959,1751681446784,-579.37,0.00019549,2]
[369656960,1751681446795,-1133.20711795,0.00019693,2]
[369656961,1751681446805,-503.55238923,0.00019721,2]
[369656962,1751681446816,-500.0,0.00019725,2]
[369656963,1751681446826,-500.0,0.00019725,2]
[369656964,1751681446835,-500.0,0.00019725,2]
[369656965,1751681446845,-500.0,0.00019725,2]
[369656966,1751681446854,-206.7396111,0.00019725,2]
[369656967,1751681446865,-500.0,0.00019725,2]
[369656968,1751681446874,-517.82,0.00019725,2]
[369656969,1751681446884,-579.37,0.00019725,2]
[369656970,1751681446893,-222.38685139,0.00019726,2]
[369656971,1751681446902,-461.31719498,0.00019726,2]
[369656972,1751681446911,-232.23669101,0.00019726,2]
[369656973,1751681446920,-244.5655882,0.00019726,2]
[369656974,1751681446929,-425.34123797,0.00019726,2]
[369656975,1751681446938,-427.13442351,0.00019726,2]
[369656976,1751681446947,-227.03642269,0.00019726,2]
[369656977,1751681446956,-460.0,0.00019726,2]
[369656978,1751681446965,-460.0,0.00019726,2]
[369656979,1751681446974,-460.0,0.00019726,2]
[369656980,1751681446983,-289.70373421,0.00019726,2]
[369656981,1751681446992,-460.0,0.00019726,2]
[369656982,1751681447001,-277.28802774,0.00019726,2]
[369656983,1751681447010,-516.9527643,0.00019726,2]
[369656984,1751681447019,-460.0,0.00019726,2]
[369656985,1751681447028,-460.0,0.00019726,2]
[369656986,1751681447037,-460.0,0.00019726,2]
[369656987,1751681447046,-243.6638839,0.00019726,2]
[369656988,1751681447055,-460.0,0.00019726,2]
[369656989,1751681447064,-460.0,0.00019726,2]
[369656990,1751681447073,-460.0,0.00019726,2]
[369656991,1751681447082,-460.0,0.00019726,2]
[369656992,1751681447091,-460.0,0.00019726,2]
[369656993,1751681447100,-378.81324364,0.00019726,2]
[369656994,1751681447109,-460.0,0.00019726,2]
[369656995,1751681447118,-463.27550058,0.00019726,2]
[369656996,1751681447127,-460.0,0.00019726,2]
[369656997,1751681447136,-460.0,0.00019726,2]
[369656998,1751681447144,-239.01606806,0.00019726,2]
[369656999,1751681447153,-644.04,0.00019726,2]
[369657000,1751681447162,-389.27450867,0.00019726,2]
[369657001,1751681447171,-216.22,0.00019726,2]
[369657002,1751681447180,-154.22960843,0.00019726,2]
[369657003,1751681447189,-581.31,0.00019726,2]
[369657004,1751681447199,-333.55740925,0.00019726,2]
[369657005,1751681447208,-733.61,0.00019726,2]
[369657006,1751681447217,-513.47768966,0.00019726,2]
[369657007,1751681447229,-460.0,0.00019726,2]
[369657008,1751681447238,-460.0,0.00019726,2]
[369657009,1751681447247,-180.75875773,0.00019726,2]
[369657010,1751681447256,-460.0,0.00019726,2]
[369657011,1751681447266,-460.0,0.00019726,2]
[369657012,1751681447276,-460.0,0.00019726,2]
[369657013,1751681447285,-460.0,0.00019726,2]
[369657014,1751681447294,-460.0,0.00019726,2]
[369657015,1751681447304,-764.26,0.00019726,2]
[369657016,1751681447314,-460.0,0.00019726,2]
[369657017,1751681447322,-460.0,0.00019726,2]
[369657018,1751681447332,-213.94610164,0.00019726,2]
[369657019,1751681447340,-763.8,0.00019726,2]
[369657020,1751681447351,-460.0,0.00019726,2]
[369657021,1751681447360,-201.06330513,0.00019726,2]
[369657022,1751681447370,-460.0,0.00019726,2]
[369657023,1751681447379,-460.0,0.00019726,2]
[369657024,1751681447388,-460.0,0.00019726,2]
[369657025,1751681447397,-467.98912184,0.00019726,2]
[369657026,1751681447407,-223.01326864,0.00019726,2]
[369657027,1751681447415,-460.0,0.00019726,2]
[369657028,1751681447425,-460.0,0.00019726,2]
[369657029,1751681447434,-554.87297494,0.00019726,2]